fUST/lending_fUST_20250209
["ID","MTS","AMOUNT","RATE_DAILY","PERIOD"]
[352326373,1739043048587,-1360.49,0.00012191,2]
[352326375,1739043048596,-1673.7,0.00012191,2]
[352326377,1739043048607,-3722.93,0.00012191,2]
[352326379,1739043048617,-1344.73,0.00012191,2]
[352326381,1739043048628,-5376.4,0.00012191,2]
[352326383,1739043048637,-707.8,0.00012191,2]
[352326385,1739043048647,-500.0,0.00012191,2]
[352326387,1739043048656,-659.1,0.00012191,2]
[352326389,1739043048666,-500.0,0.00012191,2]
[352326391,1739043048676,-636.53,0.00012191,2]
[352326393,1739043048687,-500.0,0.00012191,2]
[352326395,1739043048698,-1349.26,0.00012191,2]
[352326397,1739043048708,-674.31,0.00012191,2]
[352326399,1739043048718,-632.59775812,0.00012191,2]
[352326401,1739043048729,-500.0,0.00012191,2]
[352326403,1739043048738,-500.0,0.00012191,2]
[352326405,1739043048748,-587.61,0.00012191,2]
[352326407,1739043048758,-500.0,0.00012191,2]
[352326409,1739043048768,-1044.6,0.00012191,2]
[352326411,1739043048778,-500.0,0.00012191,2]
[352326413,1739043048788,-2642.94,0.00012191,2]
[352326415,1739043048798,-1547.29,0.00012191,2]
[352326417,1739043048808,-500.0,0.00012191,2]
[352326419,1739043048818,-22605.34381531,0.00012205,2]
[352326421,1739043048828,-354.7727591,0.00012247,2]
[352326423,1739043048838,-166.368594,0.00012247,5]
[352326425,1739043048849,-215.7975175,0.00012274,2]
[352326427,1739043048859,-215.7975175,0.00012274,2]
[352326429,1739043048869,-215.7975175,0.00012274,2]
[352326431,1739043048879,-2000.0,0.000123,2]
[352326433,1739043048889,-2000.0,0.000123,2]
[352326435,1739043048900,-151.0,0.000123,2]
[352326437,1739043048910,-151.0,0.000123,2]
[352326439,1739043048919,-432.93638619,0.00012328,2]
[352326455,1739043049071,-67.06361381,0.00012328,2]
[352326457,1739043049081,-797.06,0.00012328,2]
[352326459,1739043049091,-135.87638619,0.00012328,2]
[352326462,1739043049103,-364.12361381,0.00012328,2]
[352326463,1739043049112,-831.62,0.00012328,2]
[352326465,1739043049122,-500.0,0.00012328,2]
[352326467,1739043049131,-500.0,0.00012328,2]
[352326469,1739043049140,-500.0,0.00012328,2]
[352326471,1739043049150,-576.07,0.00012328,2]
[352326473,1739043049159,-738.94,0.00012328,2]
[352326475,1739043049169,-500.0,0.00012328,2]
[352326477,1739043049178,-500.0,0.00012328,2]
[352326479,1739043049187,-530.39339806,0.00012328,2]
[352326482,1739043049198,-104.78660194,0.00012328,2]
[352326484,1739043049209,-500.0,0.00012328,2]
[352326486,1739043049217,-500.0,0.00012328,2]
[352326488,1739043049228,-589.61,0.00012328,2]
[352326490,1739043049237,-500.0,0.00012328,2]
[352326492,1739043049247,-500.0,0.00012328,2]
[352326494,1739043049257,-500.0,0.00012328,2]
[352326496,1739043049266,-500.0,0.00012328,2]
[352326498,1739043049275,-586.66,0.00012328,2]
[352326500,1739043049284,-578.44,0.00012328,2]
[352326502,1739043049294,-500.0,0.00012328,2]
[352326504,1739043049303,-17352.59,0.00012328,2]
[352326506,1739043049312,-500.0,0.00012328,2]
[352326508,1739043049321,-760.46,0.00012328,2]
[352326510,1739043049330,-6970.56,0.00012328,2]
[352326512,1739043049339,-900.89,0.00012328,2]
[352326513,1739043049350,-500.0,0.00012328,2]
[352326516,1739043049360,-599.77,0.00012328,2]
[352326517,1739043049370,-688.34,0.00012328,2]
[352326519,1739043049379,-151.0,0.00012328,2]
[352326521,1739043049389,-151.0,0.00012328,2]
[352326524,1739043049399,-580.0,0.00012328,2]
[352326526,1739043049410,-500.0,0.00012328,2]
[352326528,1739043049419,-2406.85,0.00012328,2]
[352326529,1739043049430,-500.0,0.00012328,2]
[352326531,1739043049439,-1843.18,0.00012328,2]
[352326533,1739043049449,-844.87,0.00012328,2]
[352326535,1739043049459,-500.0,0.00012328,2]
[352326538,1739043049468,-500.0,0.00012328,2]
[352326539,1739043049478,-750.26,0.00012328,2]
[352326542,1739043049488,-676.099889,0.00012328,2]
[352326544,1739043049497,-676.099889,0.00012328,2]
[352326545,1739043049506,-653.79,0.00012328,2]
[352326547,1739043049515,-875.46,0.00012328,2]
[352326549,1739043049525,-1360.49,0.00012328,2]
[352326551,1739043049535,-151.0,0.00012328,2]
[352326553,1739043049544,-1673.7,0.00012328,2]
[352326555,1739043049553,-3722.93,0.00012328,2]
[352326557,1739043049563,-1344.73,0.00012328,2]
[352326559,1739043049572,-5376.4,0.00012328,2]
[352326561,1739043049582,-707.8,0.00012328,2]
[352326563,1739043049592,-500.0,0.00012328,2]
[352326566,1739043049602,-659.1,0.00012328,2]
[352326567,1739043049611,-500.0,0.00012328,2]
[352326569,1739043049621,-636.53,0.00012328,2]
[352326571,1739043049630,-500.0,0.00012328,2]
[352326573,1739043049639,-1349.26,0.00012328,2]
[352326575,1739043049649,-674.31,0.00012328,2]
[352326578,1739043049659,-500.0,0.00012328,2]
[352326579,1739043049668,-500.0,0.00012328,2]
[352326581,1739043049678,-587.61,0.00012328,2]
[352326583,1739043049687,-500.0,0.00012328,2]
[352326585,1739043049696,-1044.6,0.00012328,2]
[352326587,1739043049705,-160.220664,0.00012328,2]
[352326590,1739043049715,-500.0,0.00012328,2]
[352326591,1739043049725,-2642.94,0.00012328,2]
[352326594,1739043049735,-1547.29,0.00012328,2]
[352326595,1739043049744,-500.0,0.00012328,2]
[352326597,1739043049754,-13265.39216455,0.0001233,2]
[352326599,1739043049764,-2500.0,0.00012357,2]
[352326602,1739043049774,-151.0,0.00012365,2]
[352326603,1739043049784,-203.88817,0.00012365,2]
[352326605,1739043049794,-151.12975,0.00012365,2]
[352326607,1739043049803,-203.88817,0.00012365,2]
[352326610,1739043049812,-217.720791,0.00012365,2]
[352326612,1739043049821,-217.720791,0.00012365,2]
[352326614,1739043049831,-1068.3211723,0.00012386,2]
[352326616,1739043049840,-182.197388,0.00012407,2]
[352326618,1739043049849,-182.197388,0.00012407,2]
[352326619,1739043049859,-151.0,0.00012407,2]
[352326621,1739043049868,-151.0,0.00012465,2]
[352326623,1739043049877,-151.0,0.00012465,2]
[352326625,1739043049886,-151.0,0.00012465,2]
[352326627,1739043049895,-151.0,0.00012465,2]
[352326629,1739043049904,-500.0,0.00012465,2]
[352326631,1739043049916,-151.0,0.00012465,2]
[352326633,1739043049926,-431.96644991,0.00012465,2]
[352326643,1739043050006,-365.09355009,0.00012465,2]
[352326645,1739043050015,-500.0,0.00012465,2]
[352326647,1739043050024,-831.62,0.00012465,2]
[352326649,1739043050033,-500.0,0.00012465,2]
[352326651,1739043050043,-500.0,0.00012465,2]
[352326653,1739043050052,-500.0,0.00012465,2]
[352326655,1739043050061,-576.07,0.00012465,2]
[352326657,1739043050070,-738.94,0.00012465,2]
[352326659,1739043050079,-151.0,0.00012465,2]
[352326661,1739043050088,-500.0,0.00012465,2]
[352326663,1739043050097,-500.0,0.00012465,2]
[352326665,1739043050106,-635.18,0.00012465,2]
[352326667,1739043050115,-290.92085694,0.00012465,2]
[352326672,1739043050157,-209.07914306,0.00012465,2]
[352326674,1739043050166,-500.0,0.00012465,2]
[352326676,1739043050175,-551.50890278,0.00012465,2]
[352326685,1739043050249,-500.0,0.00010958,2]
[352326687,1739043050258,-153.0,0.00012,2]
[352326689,1739043050267,-38.10109722,0.00012465,2]
[352326691,1739043050276,-349.09890428,0.00012465,2]
[352326693,1739043050292,-137.67166772,0.00012465,2]
[352326695,1739043050301,-486.770572,0.00012465,2]
[352326697,1739043050310,-183.135602,0.00012465,2]
[352326699,1739043050319,-19.63677658,0.00012465,2]
[352326708,1739043050396,-150.0,0.00011991,2]
[352326710,1739043050406,-12989.02982779,0.00012443,2]
[352326712,1739043050415,-163.49882542,0.00012465,2]
[352326714,1739043050425,-500.0,0.00012465,2]
[352326716,1739043050439,-500.0,0.00012465,2]
[352326718,1739043050448,-500.0,0.00012465,2]
[352326720,1739043050458,-500.0,0.00012465,2]
[352326722,1739043050467,-586.66,0.00012465,2]
[352326724,1739043050476,-578.44,0.00012465,2]
[352326726,1739043050486,-500.0,0.00012465,2]
[352326728,1739043050495,-12625.32604701,0.00012465,2]
[352326730,1739043050506,-4727.26395299,0.00012465,2]
[352326732,1739043050516,-151.80032148,0.00012465,2]
[352326735,1739043050527,-339.27809352,0.00012465,2]
[352326737,1739043050538,-491.078415,0.00012465,2]
[352326739,1739043050547,-500.0,0.00012465,2]
[352326741,1739043050557,-760.46,0.00012465,2]
[352326743,1739043050566,-6970.56,0.00012465,2]
[352326744,1739043050575,-900.89,0.00012465,2]
[352326746,1739043050584,-279.78925844,0.00012465,2]
[352326748,1739043050593,-599.77,0.00012465,2]
[352326750,1739043050602,-688.34,0.00012465,2]
[352326752,1739043050612,-580.0,0.00012465,2]
[352326754,1739043050621,-500.0,0.00012465,2]
[352326756,1739043050630,-2406.85,0.00012465,2]
[352326758,1739043050640,-500.0,0.00012465,2]
[352326760,1739043050649,-1843.18,0.00012465,2]
[352326763,1739043050659,-844.87,0.00012465,2]
[352326765,1739043050668,-500.0,0.00012465,2]
[352326767,1739043050678,-500.0,0.00012465,2]
[352326769,1739043050687,-750.26,0.00012465,2]
[352326771,1739043050696,-653.79,0.00012465,2]
[352326772,1739043050707,-875.46,0.00012465,2]
[352326774,1739043050716,-151.0,0.00012465,2]
[352326776,1739043050726,-1360.49,0.00012465,2]
[352326778,1739043050735,-1673.7,0.00012465,2]
[352326781,1739043050745,-3722.93,0.00012465,2]
[352326782,1739043050754,-1344.73,0.00012465,2]
[352326784,1739043050763,-4462.57397804,0.00012465,2]
[352326787,1739043050775,-913.82602196,0.00012465,2]
[352326789,1739043050784,-707.8,0.00012465,2]
[352326791,1739043050793,-500.0,0.00012465,2]
[352326793,1739043050802,-659.1,0.00012465,2]
[352326795,1739043050812,-500.0,0.00012465,2]
[352326797,1739043050821,-636.53,0.00012465,2]
[352326799,1739043050831,-283.47294979,0.00012465,2]
[352326801,1739043050840,-1349.26,0.00012465,2]
[352326803,1739043050850,-674.31,0.00012465,2]
[352326805,1739043050860,-500.0,0.00012465,2]
[352326807,1739043050871,-500.0,0.00012465,2]
[352326809,1739043050881,-459.75639071,0.00012465,2]
[352328444,1739044155143,-400.0,0.00010685,2]
[352328445,1739044155163,-300.0,0.00010957,2]
[352328446,1739044155183,-500.0,0.00010958,2]
[352328447,1739044155208,-500.0,0.00010958,2]
[352328448,1739044155228,-319.42119054,0.00010958,2]
[352328449,1739044155249,-344.61692959,0.00010958,2]
[352328450,1739044155270,-500.0,0.00010958,2]
[352328451,1739044155289,-500.0,0.00010958,2]
[352328452,1739044155310,-500.0,0.00010958,2]
[352328453,1739044155330,-497.37423938,0.00010958,2]
[352328454,1739044155351,-500.0,0.00010958,2]
[352328455,1739044155372,-500.0,0.00010958,2]
[352328456,1739044155391,-500.0,0.00010958,2]
[352328457,1739044155412,-500.0,0.00010958,2]
[352328458,1739044155432,-500.0,0.00010958,2]
[352328459,1739044155455,-500.0,0.00010958,2]
[352328460,1739044155475,-500.0,0.00010958,2]
[352328461,1739044155496,-500.0,0.00010958,2]
[352328462,1739044155517,-500.0,0.00010958,2]
[352328463,1739044155537,-500.0,0.00010958,2]
[352328464,1739044155558,-500.0,0.00010958,2]
[352328465,1739044155580,-500.0,0.00010958,2]
[352328466,1739044155601,-197.69458022,0.00010958,2]
[352328467,1739044155623,-500.0,0.00010958,2]
[352328468,1739044155645,-500.0,0.00010958,2]
[352328469,1739044155666,-500.0,0.00010958,2]
[352328470,1739044155686,-500.0,0.00010958,2]
[352328471,1739044155718,-500.0,0.00010958,2]
[352328472,1739044155746,-500.0,0.00010958,2]
[352328473,1739044155773,-500.0,0.00010958,2]
[352328474,1739044155796,-500.0,0.00010958,2]
[352328475,1739044155823,-500.0,0.00010958,2]
[352328476,1739044155849,-500.0,0.00010958,2]
[352328477,1739044155875,-500.0,0.00010958,2]
[352328478,1739044155902,-500.0,0.00010958,2]
[352328479,1739044155930,-88.83086453,0.00010958,2]
[352328480,1739044157099,-411.16913547,0.00010958,2]
[352328481,1739044157125,-500.0,0.00010958,2]
[352328482,1739044157152,-500.0,0.00010958,2]
[352328483,1739044157178,-147.79667867,0.00010958,2]
[352328484,1739044159145,-641.42332133,0.00010958,2]
[352328485,1739044159174,-500.0,0.00010958,2]
[352328486,1739044159201,-820.07,0.00010958,2]
[352328487,1739044159226,-536.11,0.00010958,2]
[352328488,1739044159251,-500.0,0.00010958,2]
[352328489,1739044159277,-500.0,0.00010958,2]
[352328490,1739044159301,-500.0,0.00010958,2]
[352328491,1739044159324,-500.0,0.00010958,2]
[352328492,1739044159349,-500.0,0.00010958,2]
[352328493,1739044159373,-500.0,0.00010958,2]
[352328494,1739044159396,-500.0,0.00010958,2]
[352328495,1739044159420,-500.0,0.00010958,2]
[352328496,1739044159459,-500.0,0.00010958,2]
[352328497,1739044159495,-500.0,0.00010958,2]
[352328498,1739044159525,-500.0,0.00010958,2]
[352328499,1739044159555,-228.65259339,0.00010958,2]
[352328500,1739044159585,-500.0,0.00010958,2]
[352328501,1739044159612,-550.15,0.00010958,2]
[352328502,1739044159640,-500.0,0.00010958,2]
[352328503,1739044159666,-740.78,0.00010958,2]
[352328504,1739044159693,-500.0,0.00010958,2]
[352328505,1739044159723,-500.0,0.00010958,2]
[352328506,1739044159751,-500.0,0.00010958,2]
[352328507,1739044159778,-500.0,0.00010958,2]
[352328508,1739044159803,-500.0,0.00010958,2]
[352328509,1739044159828,-685.76,0.00010958,2]
[352328510,1739044159854,-500.0,0.00010958,2]
[352328511,1739044159879,-500.0,0.00010958,2]
[352328512,1739044159904,-500.0,0.00010958,2]
[352328513,1739044159929,-500.0,0.00010958,2]
[352328514,1739044159954,-500.0,0.00010958,2]
[352328515,1739044159981,-500.0,0.00010958,2]
[352328516,1739044160007,-853.66,0.00010958,2]
[352328517,1739044160031,-500.0,0.00010958,2]
[352328518,1739044160056,-500.0,0.00010958,2]
[352328519,1739044160083,-4833.62,0.00010958,2]
[352328520,1739044160108,-500.0,0.00010958,2]
[352328521,1739044160133,-500.0,0.00010958,2]
[352328522,1739044160162,-500.0,0.00010958,2]
[352328523,1739044160190,-500.0,0.00010958,2]
[352328524,1739044160218,-500.0,0.00010958,2]
[352328525,1739044160245,-750.7,0.00010958,2]
[352328526,1739044160270,-1804.01,0.00010958,2]
[352328527,1739044160296,-500.0,0.00010958,2]
[352328528,1739044160322,-7963.64,0.00010958,2]
[352328529,1739044160348,-500.0,0.00010958,2]
[352328530,1739044160376,-500.0,0.00010958,2]
[352328531,1739044160403,-500.0,0.00010958,2]
[352328532,1739044160429,-1970.21,0.00010958,2]
[352328533,1739044160454,-500.0,0.00010958,2]
[352328534,1739044160482,-2076.86,0.00010958,2]
[352328535,1739044160507,-500.0,0.00010958,2]
[352328536,1739044160532,-676.95,0.00010958,2]
[352328537,1739044160556,-884.85,0.00010958,2]
[352328538,1739044160580,-652.88,0.00010958,2]
[352328539,1739044160603,-500.0,0.00010958,2]
[352328540,1739044160625,-500.0,0.00010958,2]
[352328541,1739044160897,-500.0,0.00010958,2]
[352328542,1739044160920,-500.0,0.00010958,2]
[352328543,1739044160944,-606.25,0.00010958,2]
[352328544,1739044160968,-1791.89,0.00010958,2]
[352328545,1739044160990,-500.0,0.00010958,2]
[352328546,1739044161012,-500.0,0.00010958,2]
[352328547,1739044161033,-610.41398518,0.00010958,2]
[352328548,1739044161055,-500.0,0.00010958,2]
[352328549,1739044161078,-500.0,0.00010958,2]
[352328550,1739044161099,-3816.66,0.00010958,2]
[352328551,1739044161120,-256.06661074,0.00010958,2]
[352328552,1739044161140,-500.0,0.00010958,2]
[352328553,1739044161161,-500.0,0.00010958,2]
[352328554,1739044161182,-513.54563922,0.00010958,2]
[352328555,1739044161202,-500.0,0.00010958,2]
[352328556,1739044161224,-500.0,0.00010958,2]
[352328557,1739044161245,-500.0,0.00010958,2]
[352328558,1739044161266,-500.0,0.00010958,2]
[352328559,1739044161287,-752.65,0.00010958,2]
[352328560,1739044161308,-433.84468011,0.00010958,2]
[352328561,1739044161330,-500.0,0.00010958,2]
[352328562,1739044161351,-544.81791568,0.00010958,2]
[352328563,1739044161374,-772.08,0.00010958,2]
[352328564,1739044161395,-500.0,0.00010958,2]
[352328565,1739044161416,-500.0,0.00010958,2]
[352328566,1739044161438,-500.0,0.00010958,2]
[352328567,1739044161459,-556.68,0.00010958,2]
[352328568,1739044161481,-500.0,0.00010958,2]
[352328569,1739044161507,-500.0,0.00010958,2]
[352328570,1739044161529,-826.97,0.00010958,2]
[352328571,1739044161566,-638.96,0.00010958,2]
[352328572,1739044161589,-25360.35,0.00010958,2]
[352328573,1739044161612,-2440.87,0.00010958,2]
[352328574,1739044161637,-91.81741054,0.00010958,2]
[352328575,1739044169142,-408.18258946,0.00010958,2]
[352328576,1739044169162,-500.0,0.00010958,2]
[352328577,1739044169185,-1383.29557406,0.00010958,2]
[352328628,1739044231790,-400.0,0.00010685,2]
[352328630,1739044231802,-300.0,0.00010957,2]
[352328632,1739044231812,-304.25000015,0.00010958,2]
[352328643,1739044231895,-472.80395454,0.00010958,2]
[352328645,1739044231906,-3986.35913739,0.00010958,2]
[352328647,1739044231917,-460.6132283,0.00010958,2]
[352328871,1739044237688,-843.65707768,0.00010958,2]
[352328873,1739044237700,-2299.97102788,0.00010958,2]
[352328875,1739044237710,-500.0,0.00010958,2]
[352328877,1739044237720,-500.0,0.00010958,2]
[352328879,1739044237734,-500.0,0.00010958,2]
[352328881,1739044237743,-500.0,0.00010958,2]
[352328883,1739044237753,-1279.45,0.00010958,2]
[352328885,1739044237763,-1187.77,0.00010958,2]
[352328887,1739044237772,-1062.51,0.00010958,2]
[352328889,1739044237781,-913.14,0.00010958,2]
[352328891,1739044237790,-500.0,0.00010958,2]
[352328893,1739044237800,-1092.84,0.00010958,2]
[352328895,1739044237814,-500.0,0.00010958,2]
[352328897,1739044237824,-500.0,0.00010958,2]
[352328899,1739044237833,-500.0,0.00010958,2]
[352328901,1739044237843,-501.77023092,0.00010958,2]
[352328903,1739044237852,-643.64,0.00010958,2]
[352328906,1739044237862,-500.0,0.00010958,2]
[352328908,1739044237871,-500.0,0.00010958,2]
[352328910,1739044237880,-500.0,0.00010958,2]
[352328912,1739044237890,-3256.98,0.00010958,2]
[352328914,1739044237899,-500.0,0.00010958,2]
[352328916,1739044237909,-584.09,0.00010958,2]
[352328918,1739044237918,-500.0,0.00010958,2]
[352328920,1739044237927,-500.0,0.00010958,2]
[352328922,1739044237936,-500.0,0.00010958,2]
[352328924,1739044237945,-500.0,0.00010958,2]
[352328926,1739044237954,-500.0,0.00010958,2]
[352328928,1739044237964,-991.76,0.00010958,2]
[352328930,1739044237973,-500.0,0.00010958,2]
[352328932,1739044237982,-500.0,0.00010958,2]
[352328934,1739044237992,-500.0,0.00010958,2]
[352328936,1739044238001,-500.0,0.00010958,2]
[352328938,1739044238010,-1301.14,0.00010958,2]
[352328940,1739044238020,-500.0,0.00010958,2]
[352328942,1739044238030,-713.93,0.00010958,2]
[352328944,1739044238039,-502.76907623,0.00010958,2]
[352328946,1739044238048,-189.38549596,0.00010958,2]
[352328949,1739044238060,-310.61450404,0.00010958,2]
[352328951,1739044238070,-500.0,0.00010958,2]
[352328953,1739044238079,-214.02432398,0.00010958,2]
[352328955,1739044238088,-500.0,0.00010958,2]
[352328956,1739044238098,-500.0,0.00010958,2]
[352328958,1739044238107,-500.0,0.00010958,2]
[352328961,1739044238116,-232.91058142,0.00010958,2]
[352328963,1739044238126,-500.0,0.00010958,2]
[352328965,1739044238134,-500.0,0.00010958,2]
[352328967,1739044238144,-500.0,0.00010958,2]
[352328969,1739044238154,-500.0,0.00010958,2]
[352328971,1739044238163,-500.0,0.00010958,2]
[352328973,1739044238172,-500.0,0.00010958,2]
[352328975,1739044238181,-500.0,0.00010958,2]
[352328977,1739044238190,-500.0,0.00010958,2]
[352328979,1739044238199,-500.0,0.00010958,2]
[352328981,1739044238209,-500.0,0.00010958,2]
[352328983,1739044238217,-500.0,0.00010958,2]
[352328985,1739044238227,-500.0,0.00010958,2]
[352328987,1739044238236,-500.0,0.00010958,2]
[352328989,1739044238246,-500.0,0.00010958,2]
[352328991,1739044238255,-2404.85,0.00010958,2]
[352328993,1739044238265,-500.0,0.00010958,2]
[352328995,1739044238275,-500.0,0.00010958,2]
[352328998,1739044238292,-500.0,0.00010958,2]
[352329000,1739044238304,-525.34,0.00010958,2]
[352329002,1739044238314,-500.0,0.00010958,2]
[352329004,1739044238323,-500.0,0.00010958,2]
[352329006,1739044238332,-500.0,0.00010958,2]
[352329008,1739044238342,-500.0,0.00010958,2]
[352329010,1739044238351,-500.0,0.00010958,2]
[352329012,1739044238360,-1077.29,0.00010958,2]
[352329014,1739044238370,-500.0,0.00010958,2]
[352329016,1739044238379,-2175.99,0.00010958,2]
[352329018,1739044238389,-500.0,0.00010958,2]
[352329020,1739044238399,-1002.91,0.00010958,2]
[352329022,1739044238408,-500.0,0.00010958,2]
[352329024,1739044238417,-2009.01,0.00010958,2]
[352329026,1739044238427,-10518.0,0.00010958,2]
[352329028,1739044238436,-5638.44,0.00010958,2]
[352329031,1739044238446,-871.56,0.00010958,2]
[352329033,1739044238455,-500.0,0.00010958,2]
[352329035,1739044238464,-500.0,0.00010958,2]
[352329037,1739044238473,-500.0,0.00010958,2]
[352329039,1739044238482,-692.38,0.00010958,2]
[352329041,1739044238492,-500.0,0.00010958,2]
[352329043,1739044238502,-500.0,0.00010958,2]
[352329045,1739044238511,-972.55,0.00010958,2]
[352329047,1739044238520,-2146.69,0.00010958,2]
[352329049,1739044238530,-500.0,0.00010958,2]
[352329073,1739044238758,-500.0,0.00010958,2]
[352329075,1739044238768,-500.0,0.00010958,2]
[352329077,1739044238778,-500.0,0.00010958,2]
[352329080,1739044238788,-500.0,0.00010958,2]
[352329082,1739044238798,-500.0,0.00010958,2]
[352329084,1739044238810,-500.0,0.00010958,2]
[352329086,1739044238822,-2297.67,0.00010958,2]
[352329087,1739044238831,-500.0,0.00010958,2]
[352329090,1739044238841,-763.54,0.00010958,2]
[352329092,1739044238851,-500.0,0.00010958,2]
[352329094,1739044238860,-500.0,0.00010958,2]
[352329096,1739044238869,-500.0,0.00010958,2]
[352329098,1739044238878,-500.0,0.00010958,2]
[352329100,1739044238887,-616.74,0.00010958,2]
[352329102,1739044238896,-500.0,0.00010958,2]
[352329104,1739044238906,-500.0,0.00010958,2]
[352329105,1739044238915,-500.0,0.00010958,2]
[352329107,1739044238924,-500.0,0.00010958,2]
[352329109,1739044238933,-1953.74,0.00010958,2]
[352329111,1739044238943,-1075.4,0.00010958,2]
[352329114,1739044238952,-164.34,0.00010959,2]
[352329116,1739044238962,-175.79451923,0.00010995,2]
[352329118,1739044238972,-500.0,0.00011095,2]
[352329120,1739044238981,-500.0,0.00011095,2]
[352329122,1739044238990,-500.0,0.00011095,2]
[352329124,1739044239000,-500.0,0.00011095,2]
[352329126,1739044239011,-500.0,0.00011095,2]
[352329127,1739044239020,-500.0,0.00011095,2]
[352329129,1739044239030,-500.0,0.00011095,2]
[352329131,1739044239041,-500.0,0.00011095,2]
[352329133,1739044239050,-500.0,0.00011095,2]
[352329135,1739044239059,-500.0,0.00011095,2]
[352329137,1739044239069,-500.0,0.00011095,2]
[352329139,1739044239078,-500.0,0.00011095,2]
[352329142,1739044239088,-500.0,0.00011095,2]
[352329144,1739044239097,-789.22,0.00011095,2]
[352329146,1739044239106,-820.07,0.00011095,2]
[352329148,1739044239115,-536.11,0.00011095,2]
[352329150,1739044239124,-500.0,0.00011095,2]
[352329152,1739044239133,-500.0,0.00011095,2]
[352329155,1739044239143,-643.78933209,0.00011095,2]
[352329158,1739044239152,-500.0,0.00011095,2]
[352329161,1739044239161,-500.0,0.00011095,2]
[352329164,1739044239170,-500.0,0.00011095,2]
[352329167,1739044239179,-500.0,0.00011095,2]
[352329170,1739044239189,-550.15,0.00011095,2]
[352329173,1739044239198,-740.78,0.00011095,2]
[352329175,1739044239208,-500.0,0.00011095,2]
[352329178,1739044239218,-500.0,0.00011095,2]
[352329182,1739044239227,-500.0,0.00011095,2]
[352329185,1739044239236,-500.0,0.00011095,2]
[352329187,1739044239245,-685.76,0.00011095,2]
[352329189,1739044239255,-500.0,0.00011095,2]
[352329191,1739044239264,-500.0,0.00011095,2]
[352329193,1739044239273,-500.0,0.00011095,2]
[352329195,1739044239283,-500.0,0.00011095,2]
[352329197,1739044239292,-500.0,0.00011095,2]
[352329200,1739044239303,-500.0,0.00011095,2]
[352329202,1739044239314,-500.0,0.00011095,2]
[352329204,1739044239323,-500.0,0.00011095,2]
[352329206,1739044239334,-500.0,0.00011095,2]
[352329208,1739044239343,-500.0,0.00011095,2]
[352329210,1739044239353,-500.0,0.00011095,2]
[352329211,1739044239362,-500.0,0.00011095,2]
[352329212,1739044239371,-500.0,0.00011095,2]
[352329213,1739044239380,-500.0,0.00011095,2]
[352329214,1739044239389,-3816.66,0.00011095,2]
[352329215,1739044239398,-500.0,0.00011095,2]
[352329216,1739044239409,-500.0,0.00011095,2]
[352329217,1739044239418,-500.0,0.00011095,2]
[352329218,1739044239430,-752.65,0.00011095,2]
[352329219,1739044239439,-500.0,0.00011095,2]
[352329220,1739044239448,-772.08,0.00011095,2]